bitfinex-derivatives/quotes_ETHF0:USTF0_20250828
["timestamp","ask_amount","ask_price","bid_price","bid_amount"]
[1756373371573,2.3231,4601.2,4601.1,20.0569]
[1756373371773,2.3231,4601.2,4601.1,20.0559]
[1756373372381,2.3231,4601.2,4601.1,0.3199]
[1756373372586,2.3231,4601.2,4601.1,19.735]
[1756373373081,2.3231,4601.2,4601.1,20.0549]
[1756373373283,1.9082,4601.2,4601.1,20.2548]
[1756373373582,2.3231,4601.2,4601.1,20.0549]
[1756373374383,1.3016,4601.2,4601.1,20.0549]
[1756373374676,1.3016,4601.2,4601.1,20.2548]
[1756373374878,0.4149,4602.5,4601.7,0.1999]
[1756373375081,0.9765,4602.6,4601.8,20.0539]
[1756373375082,0.9317,4601.9,4601.8,20.0539]
[1756373375283,2.3231,4601.9,4601.8,20.0539]
[1756373375678,2.3231,4601.9,4601.8,19.734]
[1756373376480,2.3231,4601.9,4601.8,20.0539]
[1756373379891,2.32768196,4601.9,4601.8,20.0539]
[1756373380785,2.32768196,4601.9,4601.8,0.3199]
[1756373380983,2.3074,4601.8,4601.7,3.5017]
[1756373381193,2.3074,4601.8,4601.7,12.0848]
[1756373381493,2.3074,4601.8,4601.7,3.2078]
[1756373381691,1.1405,4601.3,4601.2,3.2078]
[1756373381992,2.3074,4601.3,4601.2,7.488]
[1756373384388,2.3074,4601.3,4601.2,7.7819]
[1756373385093,2.79048323,4601.3,4601.2,7.7819]
[1756373385985,2.3074,4601.3,4601.2,7.7819]
[1756373387099,2.79075446,4601.3,4601.2,7.7819]
[1756373387294,2.3074,4601.3,4601.2,7.7819]
[1756373388195,2.79091064,4601.3,4601.2,7.7819]
[1756373389098,2.79091064,4601.3,4601.2,7.488]
[1756373389594,2.79091064,4601.3,4601.2,7.7819]
[1756373391792,2.79091064,4601.3,4601.2,7.9656]
[1756373392496,2.36951064,4601.3,4601.2,7.9656]
[1756373393401,2.79091064,4601.3,4601.2,7.9656]
[1756373393602,2.79091064,4601.3,4601.2,7.7819]
[1756373398004,2.79091064,4601.3,4600.8,0.1322]
[1756373398198,0.48351064,4601.2,4601.1,0.2939]
[1756373398504,0.48351064,4601.6,4601.1,0.4776]
[1756373398701,1.1669,4601.3,4601.1,0.4776]
[1756373398901,1.13281064,4601.2,4601.1,0.4776]
[1756373399102,2.79091064,4601.2,4601.1,0.2939]
[1756373399803,1.45011064,4601.2,4601.1,0.4776]
[1756373401111,1.87151064,4601.2,4601.1,0.4776]
[1756373401407,2.79091064,4601.2,4601.1,0.4776]
[1756373401612,2.79091064,4601.2,4601.1,0.2939]
[1756373411121,0.8913,4601.0,4600.9,15.857]
[1756373411324,2.78341064,4601.0,4600.9,15.857]
[1756373411916,1.37481064,4601.0,4600.7,3.2078]
[1756373412116,0.8913,4601.0,4600.9,19.728]
[1756373412316,1.37631955,4601.0,4600.9,19.728]
[1756373412520,2.78491955,4601.0,4600.9,19.728]
[1756373418723,3.00226956,4601.0,4600.9,19.728]
[1756373419327,2.78491955,4601.0,4600.9,19.728]
[1756373422129,2.78491955,4601.0,4600.7,0.1338]
[1756373422336,2.2999,4600.8,4600.7,0.1338]
[1756373422630,2.78491955,4600.8,4600.7,0.1338]
[1756373422836,1.37631955,4600.8,4600.5,19.727]
[1756373423036,2.2999,4600.6,4600.5,19.727]
[1756373423343,2.78491955,4600.6,4600.5,19.727]
[1756373424237,2.78491955,4600.6,4600.5,19.9921]
[1756373425936,2.78491955,4600.6,4600.5,19.727]
[1756373428545,2.78491955,4600.6,4600.3,0.1226]
[1756373428837,2.2999,4600.4,4600.3,19.8496]
[1756373429038,2.78491955,4600.4,4600.3,19.8496]
[1756373429232,2.78491955,4600.4,4600.3,19.727]
[1756373429638,1.4086,4600.3,4600.0,31.324]
[1756373429841,2.78491955,4600.2,4600.1,19.728]
[1756373430335,2.78491955,4600.2,4600.1,19.9931]
[1756373430541,2.78491955,4600.2,4600.1,19.728]
[1756373430738,2.78491955,4600.2,4599.7,3.2078]
[1756373431041,0.8913,4599.9,4599.8,8.2481]
[1756373431339,2.78491955,4599.9,4599.8,0.2651]
[1756373432935,1.78451955,4599.9,4599.8,0.4182]
[1756373433242,2.78355401,4599.9,4599.8,0.2651]
[1756373433544,2.78355401,4599.9,4599.8,0.4182]
[1756373433838,2.78355401,4599.9,4599.8,0.2651]
[1756373438638,2.78355401,4599.9,4599.6,0.1158]
[1756373438839,2.40345401,4599.8,4599.7,0.2386]
[1756373439040,2.71885401,4599.8,4599.7,0.2386]
[1756373439240,2.71885401,4599.8,4599.6,0.1158]
[1756373439440,1.37675401,4599.7,4599.6,0.1158]
[1756373439638,2.71885401,4599.7,4599.6,0.1158]
[1756373439841,1.3421,4599.6,4599.3,19.729]
[1756373440145,2.2352,4599.4,4599.3,19.9676]
[1756373441836,2.72097325,4599.4,4599.3,19.9676]
[1756373442145,2.2352,4599.4,4599.3,19.9676]
[1756373442951,2.72100194,4599.4,4599.3,19.9676]
[1756373443446,2.72109064,4599.4,4599.3,19.9676]
[1756373446036,2.2352,4599.4,4599.3,19.9676]
[1756373449247,2.72150297,4599.4,4599.1,19.8573]
[1756373449450,2.2352,4599.2,4599.1,19.8573]
[1756373449744,2.72150297,4599.2,4599.1,19.9676]
[1756373449949,2.72150297,4599.2,4599.1,19.729]
[1756373451443,1.3421,4599.1,4598.6,19.73]
[1756373451648,2.2352,4598.7,4598.6,19.73]
[1756373451849,2.72150297,4598.7,4598.6,19.73]
[1756373452744,2.72150297,4598.7,4598.6,19.9686]
[1756373456047,2.72150297,4598.7,4598.6,0.2386]
[1756373456251,2.72150297,4598.7,4598.4,0.1263]
[1756373456452,2.2352,4598.5,4598.4,0.1263]
[1756373456652,2.72150297,4598.5,4598.4,0.3649]
[1756373456852,2.72150297,4598.5,4598.4,0.2386]
[1756373457355,0.8931,4598.2,4598.1,15.1736]
[1756373457555,2.2352,4598.2,4598.1,15.1736]
[1756373458154,0.8931,4598.2,4597.7,3.2078]
[1756373458360,2.2352,4598.1,4598.0,0.2386]
[1756373458854,2.71734032,4598.1,4597.5,19.731]
[1756373459053,1.3421,4598.0,4597.5,19.731]
[1756373459252,0.8931,4597.7,4597.6,0.3576]
[1756373459453,2.2352,4597.7,4597.6,0.3576]
[1756373460554,2.2352,4597.7,4597.6,0.119]
[1756373460751,2.71720727,4597.7,4597.6,0.119]
[1756373461461,5.37510727,4597.7,4597.2,19.732]
[1756373461659,6.623,4598.6,4597.2,19.732]
[1756373461660,2.2352,4597.3,4597.2,19.732]
[1756373461862,1.3421,4597.2,4596.6,19.732]
[1756373462158,2.2352,4597.2,4597.1,0.2386]
[1756373462547,0.8931,4597.2,4596.6,19.732]
[1756373462750,1.2996,4596.7,4596.6,19.9706]
[1756373462959,1.4675,4596.7,4596.6,19.9706]
[1756373463258,2.2352,4596.7,4596.6,0.2386]
[1756373464757,1.3421,4596.6,4596.0,10.8828]
[1756373464957,1.3421,4596.5,4596.0,10.8828]
[1756373465155,2.2352,4596.5,4596.4,0.2386]
[1756373467163,0.8931,4596.5,4596.0,10.8828]
[1756373467363,2.2352,4596.4,4596.3,0.2386]
[1756373467658,1.3421,4596.3,4596.0,7.675]
[1756373467858,2.2352,4596.1,4596.0,7.9136]
[1756373474667,0.451,4596.2,4596.1,0.1322]
[1756373474966,0.451,4596.7,4596.6,0.3438]
[1756373475163,0.9118,4596.7,4596.6,0.3438]
[1756373475359,2.1911,4596.7,4596.6,0.2116]
[1756373476060,1.7946,4596.7,4596.6,0.2116]
[1756373476356,0.9118,4596.7,4596.6,0.3438]
[1756373476867,2.1911,4596.7,4596.6,0.2116]
[1756373477761,1.67088,4596.5,4596.4,0.2116]
[1756373478064,0.3916,4596.2,4596.1,15.799]
[1756373478268,1.3034,4596.2,4596.1,16.1428]
[1756373478570,2.5827,4596.2,4596.1,16.0106]
[1756373478865,2.5827,4596.2,4596.1,0.2116]
[1756373481574,2.1862,4596.2,4596.1,0.3438]
[1756373481967,2.1862,4596.2,4596.1,0.2116]
[1756373482169,2.5827,4596.2,4596.1,0.2116]
[1756373482868,2.5827,4596.2,4595.9,19.739]
[1756373482869,0.97112,4596.0,4595.9,19.9506]
[1756373483171,2.58272,4596.0,4595.9,19.9506]
[1756373486166,2.58272,4596.0,4595.9,20.0828]
[1756373487371,2.58272,4596.0,4595.9,19.9506]
[1756373487769,1.30342,4596.0,4595.9,20.0828]
[1756373487969,0.84262,4596.0,4595.9,20.47443]
[1756373488166,1.32513602,4596.0,4595.9,20.47443]
[1756373488367,0.87413602,4596.0,4595.9,20.47443]
[1756373488569,0.48251602,4596.0,4595.9,20.47443]
[1756373488874,0.87413602,4596.0,4595.9,20.47443]
[1756373489083,1.32513602,4596.0,4595.9,20.47443]
[1756373489281,1.78593602,4596.0,4595.9,20.47443]
[1756373489483,1.39431602,4596.0,4595.9,20.47443]
[1756373489685,1.78593602,4596.0,4595.9,20.47443]
[1756373489987,1.78593602,4596.0,4595.9,20.0828]
[1756373492377,2.58274,4595.8,4595.7,0.2116]
[1756373492580,3.06525602,4595.8,4595.7,19.9506]
[1756373493491,1.78595602,4595.8,4595.7,20.0828]
[1756373493686,1.32515602,4595.8,4595.7,20.0828]
[1756373493882,1.78595602,4595.8,4595.7,20.0828]
[1756373494587,1.30344,4595.8,4595.7,20.0828]
[1756373494889,1.78673613,4595.8,4595.7,20.0828]
[1756373495084,1.30344,4595.8,4595.7,20.0828]
[1756373495985,1.30344,4595.8,4595.7,20.47445]
[1756373496288,1.59864,4595.8,4595.7,20.0828]
[1756373496480,2.58274,4595.8,4595.7,19.9506]
[1756373497791,2.58274,4595.8,4595.7,0.2116]
[1756373497985,2.58274,4595.8,4595.5,3.2078]
[1756373497986,2.59286,4595.6,4595.5,3.2078]
[1756373498181,3.07615949,4595.6,4595.5,11.5828]
[1756373501691,3.07615949,4595.6,4595.5,11.7697]
[1756373504192,1.78155949,4595.6,4595.5,11.8865]
[1756373504395,1.33225949,4595.6,4595.5,11.8865]
[1756373504692,0.39164,4595.8,4595.5,16.27816]
[1756373504895,0.39164,4595.8,4595.7,0.3037]
[1756373506493,1.29824,4595.8,4595.7,0.3037]
[1756373506695,2.59284,4595.8,4595.7,0.1869]
[1756373507089,2.18094,4595.8,4595.7,0.3037]
[1756373507996,2.59284,4595.8,4595.7,0.1869]
[1756373508194,2.59286,4595.6,4595.5,3.3947]
[1756373508401,2.59286,4595.6,4595.5,14.5737]
[1756373508898,2.59286,4595.6,4595.5,23.1337]
[1756373510301,1.29826,4595.6,4595.5,23.2505]
[1756373510495,0.84896,4595.6,4595.5,23.2505]
[1756373512698,1.29826,4595.6,4595.5,23.2505]
[1756373514100,0.84896,4595.6,4595.5,23.2505]
[1756373516003,1.29826,4595.6,4595.5,23.2505]
[1756373517302,1.29826,4595.6,4595.5,23.64216]
[1756373517997,1.29826,4595.6,4595.5,23.2505]
[1756373521506,2.59286,4595.6,4595.5,23.1337]
[1756373521898,3.08249271,4595.6,4595.5,3.2078]
[1756373522097,3.08249271,4595.6,4595.5,22.9448]
[1756373522506,3.08249271,4595.6,4595.5,19.737]
[1756373523298,2.5929,4595.1,4595.0,3.3947]
[1756373523504,3.08163913,4595.1,4595.0,23.1307]
[1756373525110,3.08158331,4595.1,4595.0,23.1307]
[1756373525405,2.5929,4595.1,4595.0,23.1307]
[1756373525999,3.08144982,4595.1,4595.0,23.1307]
[1756373528510,3.08144982,4595.1,4595.0,19.9239]
[1756373529216,3.08144982,4595.1,4595.0,19.737]
[1756373530510,3.08144982,4595.1,4595.0,19.897]
[1756373532607,2.50883,4594.7,4594.6,0.0178]
[1756373532811,2.99737982,4594.7,4594.6,19.7558]
[1756373533116,2.99737982,4594.7,4594.6,19.738]
[1756373533413,2.99737982,4594.7,4594.6,19.898]
[1756373536216,2.50883,4594.7,4594.6,19.898]
[1756373538019,1.25864,4594.6,4594.5,3.2078]
[1756373538207,0.39176,4594.4,4594.3,0.1742]
[1756373538412,1.24736,4594.4,4594.3,8.5062]
[1756373538917,0.4279,4594.4,4594.3,8.492]
[1756373539116,0.39174,4594.6,4594.4,0.1]
[1756373539315,0.81963,4594.8,4594.7,0.16]
[1756373539620,0.81963,4594.8,4594.7,17.456]
[1756373539810,0.4279,4594.8,4594.7,17.456]
[1756373540011,0.39172,4594.9,4594.8,0.26]
[1756373540523,2.50882,4594.9,4594.8,19.899]
[1756373542118,2.11424,4594.6,4594.5,0.1721]
[1756373542311,2.50884,4594.6,4594.5,19.9111]
[1756373542512,2.50884,4594.6,4594.5,0.1721]
[1756373542814,2.50884,4594.6,4594.5,19.9111]
[1756373544616,2.50884,4594.6,4594.5,19.899]
[1756373545223,2.99122532,4594.6,4594.5,19.899]
[1756373548418,1.30202532,4594.6,4594.5,19.999]
[1756373548617,0.81964,4594.6,4594.5,19.999]
[1756373548822,1.73000748,4594.6,4594.5,19.999]
[1756373551926,2.12460748,4594.6,4594.5,19.999]
[1756373552628,2.99150748,4594.6,4594.5,19.899]
[1756373553228,2.99150748,4594.6,4594.5,19.999]
[1756373553726,2.99150748,4594.6,4594.5,19.899]
[1756373555724,2.99150748,4594.6,4594.5,0.16]
[1756373556026,2.99150748,4594.6,4594.5,19.9]
[1756373559022,0.87440748,4594.6,4594.5,19.9]
[1756373559223,0.87440748,4594.6,4594.5,19.9845]
[1756373559426,0.39174,4594.6,4594.5,19.9845]
[1756373559627,0.30724,4594.6,4594.5,19.9845]
[1756373561125,0.30724,4594.6,4594.5,0.16]
[1756373561330,2.92934019,4594.6,4594.5,19.899]
[1756373561719,2.92936798,4594.6,4594.5,19.899]
[1756373562824,2.92936798,4594.6,4594.5,0.16]
[1756373563029,0.95836,4594.4,4594.3,0.0126]
[1756373563225,3.01388798,4594.4,4594.3,8.2786]
[1756373563425,3.01388798,4594.4,4594.3,8.266]
[1756373563622,2.53398,4594.2,4594.1,3.30792734]
[1756373563827,3.01390798,4594.2,4594.1,19.27492734]
[1756373565330,2.59310798,4594.2,4594.1,19.27492734]
[1756373570237,3.01390798,4594.2,4594.1,23.04692734]
[1756373570731,3.01390798,4594.2,4594.1,3.30792734]
[1756373571835,3.00983597,4594.2,4594.1,3.30792734]
[1756373575636,3.00983597,4594.2,4594.1,23.04692734]
[1756373577227,0.47585597,4594.2,4594.1,23.04692734]
[1756373577437,0.4429,4594.2,4594.1,23.04692734]
[1756373578137,0.8623,4594.2,4594.1,23.04692734]
[1756373579235,0.4429,4594.2,4594.1,23.05492734]
[1756373579440,0.39177,4594.3,4594.1,23.05492734]
[1756373580040,0.83467,4594.3,4594.1,23.05492734]
[1756373580541,0.39177,4594.3,4594.1,23.44670734]
[1756373581747,0.83467,4594.3,4594.1,23.44670734]
[1756373581944,0.39177,4594.3,4594.1,23.44670734]
[1756373582339,0.39177,4594.3,4594.2,0.39178]
[1756373583634,1.39875,4594.7,4594.1,23.05492734]
[1756373583841,0.47282182,4594.6,4594.1,23.44670734]
[1756373584040,0.8623,4594.4,4594.1,23.44670734]
[1756373584242,0.83468,4594.2,4594.1,23.44670734]
[1756373584546,0.83468,4594.2,4594.1,23.44170734]
[1756373585249,0.83468,4594.2,4594.1,23.04992734]
[1756373585447,1.25408,4594.2,4594.1,23.04992734]
[1756373586145,1.95788,4594.2,4594.1,3.30792734]
[1756373586350,2.53398,4594.2,4594.1,23.04992734]
[1756373587559,2.53398,4594.2,4594.1,23.04692734]
[1756373588052,2.53398,4594.2,4594.1,23.04992734]
[1756373589349,1.25408,4594.2,4594.1,23.04992734]
[1756373589954,1.64568,4594.2,4594.1,23.04992734]
[1756373590256,1.81898,4594.2,4594.1,23.04992734]
[1756373590452,1.25408,4594.2,4594.1,23.04992734]
[1756373590951,2.21058,4594.2,4594.1,23.04992734]
[1756373591754,2.48148,4594.2,4594.1,23.04992734]
[1756373592654,0.423,4594.5,4594.1,23.04992734]
[1756373592848,0.423,4594.2,4594.1,23.44170734]
[1756373593151,0.39177,4594.3,4594.2,0.39178]
[1756373593353,0.81477,4594.3,4594.2,19.741]
[1756373593853,0.81477,4594.3,4594.2,20.13278]
[1756373594452,0.423,4594.3,4594.2,20.13278]
[1756373594849,0.81477,4594.3,4594.2,20.13278]
[1756373595154,3.2078,4594.9,4594.3,0.39176]
[1756373595453,0.86318355,4594.8,4594.5,0.39175]
[1756373595754,0.39173,4594.8,4594.6,19.739]
[1756373595948,0.423,4594.7,4594.6,19.739]
[1756373596148,0.39173,4594.8,4594.6,19.739]
[1756373596355,0.423,4594.7,4594.6,19.739]
[1756373596856,4.02252,4594.9,4594.6,20.13074]
[1756373597054,0.47137336,4594.8,4594.6,20.13074]
[1756373597353,0.39173,4594.8,4594.6,20.13074]
[1756373597555,0.39173,4594.8,4594.6,19.739]
[1756373598157,0.81133,4594.8,4594.6,19.739]
[1756373598456,0.8426,4594.7,4594.6,19.739]
[1756373598659,0.281,4594.7,4594.6,19.739]
[1756373598859,2.07,4594.7,4594.6,19.739]
[1756373599054,2.07,4594.2,4594.1,3.30792734]
[1756373599253,2.07,4594.2,4594.1,23.04992734]
[1756373599450,0.8426,4594.2,4594.1,23.04992734]
[1756373599656,1.7991,4594.2,4594.1,23.04992734]
[1756373599852,1.6784,4594.2,4594.1,23.04992734]
[1756373600153,0.423,4594.2,4594.1,23.04992734]
[1756373600557,2.07,4594.2,4594.1,23.04992734]
[1756373601255,2.07,4594.2,4594.1,3.30792734]
[1756373601556,2.07,4594.2,4594.1,23.04892734]
[1756373602857,2.07,4594.2,4594.1,23.04792734]
[1756373603052,2.07,4594.2,4594.1,3.30792734]
[1756373603357,2.07,4594.2,4594.1,23.04892734]
[1756373603958,0.8426,4594.2,4594.1,23.04892734]
[1756373604256,2.07,4594.2,4594.1,23.04892734]
[1756373606352,0.39177,4594.3,4594.1,23.04892734]
[1756373606549,0.39175,4594.5,4594.1,23.04892734]
[1756373606952,0.81475,4594.5,4594.1,23.04892734]
[1756373607863,0.8426,4594.8,4594.3,0.39177]
[1756373608064,0.423,4594.6,4594.4,19.748]
[1756373608560,0.39175,4594.5,4594.4,19.748]
[1756373609355,0.81475,4594.5,4594.4,19.748]
[1756373610065,1.23435,4594.5,4594.4,19.748]
[1756373611064,1.79925,4594.5,4594.4,19.748]
[1756373611365,2.19085,4594.5,4594.4,19.748]
[1756373612871,1.23435,4594.5,4594.4,19.748]
[1756373613072,0.81475,4594.5,4594.4,19.748]
[1756373613667,2.46175,4594.5,4594.4,19.748]
[1756373614171,2.07015,4594.5,4594.4,19.748]
[1756373614871,1.79925,4594.5,4594.4,19.748]
[1756373615072,1.51825,4594.5,4594.4,19.748]
[1756373616672,1.79925,4594.5,4594.4,19.748]
[1756373617074,1.51825,4594.5,4594.4,19.748]
[1756373617275,1.23435,4594.5,4594.4,19.748]
[1756373618267,0.81475,4594.5,4594.4,19.748]
[1756373618573,1.23425,4594.5,4594.4,19.748]
[1756373618977,1.78435,4594.5,4594.4,19.748]
[1756373619176,2.20115,4594.5,4594.4,19.748]
[1756373619672,0.39178,4594.2,4594.1,3.30792734]
[1756373619971,2.47638,4594.2,4594.1,3.30792734]
[1756373620175,2.47638,4594.2,4594.1,23.04592734]
[1756373620376,2.47638,4594.2,4594.1,23.04892734]
[1756373620870,2.9464828,4594.2,4594.1,23.04892734]
[1756373621870,2.9464828,4594.2,4594.1,23.05192734]
[1756373624681,1.6981828,4594.2,4594.1,23.05192734]
[1756373624978,0.8869028,4594.2,4594.1,23.05192734]
[1756373625176,1.2786828,4594.2,4594.1,23.05192734]
[1756373626183,0.80858,4594.2,4594.1,23.05192734]
[1756373627280,1.22808,4594.2,4594.1,23.05192734]
[1756373628190,2.47638,4594.2,4594.1,23.04792734]
[1756373628687,2.47638,4594.2,4594.1,23.04692734]
[1756373628881,2.47638,4594.2,4594.1,3.30792734]
[1756373629082,2.47638,4594.2,4594.1,23.04692734]
[1756373631190,2.94928546,4594.2,4594.1,23.04692734]
[1756373631486,2.47638,4594.2,4594.1,23.04692734]
[1756373631686,1.22808,4594.2,4594.1,23.04692734]
[1756373631887,0.39178,4594.2,4594.1,23.04692734]
[1756373632087,0.80858,4594.2,4594.1,23.04692734]
[1756373632284,1.22808,4594.2,4594.1,23.04792734]
[1756373634393,1.22808,4594.2,4594.1,3.30792734]
[1756373634593,2.19008,4594.2,4594.1,23.04792734]
[1756373635391,2.19008,4594.2,4594.1,3.30792734]
[1756373635591,2.19008,4594.2,4594.1,18.93792734]
[1756373636088,0.80858,4594.2,4594.1,18.93792734]
[1756373636690,1.22808,4594.2,4594.1,18.93792734]
[1756373640696,0.4168,4594.8,4594.2,0.39178]
[1756373640895,0.39175,4594.6,4594.3,0.39176]
[1756373641288,0.39175,4594.6,4594.4,0.39176]
[1756373641486,0.4168,4594.9,4594.2,0.21766]
[1756373641789,0.86476185,4594.8,4594.6,0.39174]
[1756373641997,0.4168,4594.9,4594.7,19.741]
[1756373642195,0.86475184,4594.8,4594.7,19.741]
[1756373642396,0.39172,4594.9,4594.7,19.741]
[1756373642592,0.4168,4595.6,4594.8,0.21764]
[1756373642791,0.47305459,4595.5,4595.1,3.5995]
[1756373642993,0.80847,4595.5,4595.2,19.742]
[1756373643193,0.80847,4595.5,4595.2,20.13369]
[1756373644001,0.39168,4595.4,4595.2,20.13369]
[1756373644204,0.39167,4595.5,4595.2,20.3513]
[1756373644399,0.39167,4595.5,4595.2,20.13369]
[1756373645197,0.39168,4595.4,4595.2,19.742]
[1756373646303,0.0299872,4595.3,4595.2,19.742]
[1756373648097,0.4363872,4595.3,4595.2,19.742]
[1756373648403,2.45529,4595.2,4595.1,3.2078]
[1756373648600,1.20413,4594.7,4594.6,34.5678]
[1756373648805,2.45533,4594.7,4594.6,54.3098]
[1756373649201,6.4853172,4594.7,4594.6,31.36]
[1756373649401,6.95401021,4594.7,4594.6,51.103]
[1756373651406,6.95401021,4594.7,4594.6,19.743]
[1756373651703,2.45538,4594.2,4594.1,3.30792734]
[1756373651905,2.45538,4594.2,4594.1,16.59992734]
[1756373652206,2.4853672,4594.2,4594.1,16.59992734]
[1756373652903,1.2494672,4594.2,4594.1,16.59992734]
[1756373653399,0.4217672,4594.2,4594.1,16.59992734]
[1756373654012,0.8281672,4594.2,4594.1,16.59992734]
[1756373655311,2.4853672,4594.2,4594.1,16.59992734]
[1756373655605,2.4853672,4594.2,4594.1,23.04892734]
[1756373656702,2.4853672,4594.2,4594.1,3.30792734]
[1756373656909,2.4853672,4594.2,4594.1,23.04792734]
[1756373659913,2.4853672,4594.2,4594.1,23.04692734]
[1756373660800,1.2494672,4594.2,4594.1,23.04692734]
[1756373661003,0.8281672,4594.2,4594.1,23.04692734]
[1756373663010,0.4217672,4594.2,4594.1,23.04692734]
[1756373663609,2.4853672,4594.2,4594.1,3.30792734]
[1756373663817,2.4853672,4594.2,4594.1,16.42892734]
[1756373664910,2.4853672,4594.2,4594.1,23.04692734]
[1756373666817,2.4853672,4594.2,4594.1,23.05092734]
[1756373667013,2.4853672,4594.2,4594.1,3.30792734]
[1756373667219,2.4853672,4594.2,4594.1,12.59512734]
[1756373667519,2.95099979,4594.2,4594.1,12.59512734]
[1756373668413,2.4853672,4594.2,4594.1,12.59512734]
[1756373668612,2.95097305,4594.2,4594.1,12.59512734]
[1756373670412,2.95097305,4594.2,4594.1,0.10012734]
[1756373670615,2.95097305,4594.2,4593.4,3.2078]
[1756373670616,0.39184,4593.5,4593.4,3.2078]
[1756373670813,0.79824,4593.5,4593.4,15.6898]
[1756373671015,1.21954,4593.5,4593.4,15.6898]
[1756373671213,2.4854272,4593.5,4593.4,22.9478]
[1756373671821,0.0299872,4593.5,4593.4,23.33964]
[1756373672219,0.4218172,4593.5,4593.4,22.9478]
[1756373673324,2.4854172,4593.5,4593.4,22.9478]
[1756373674220,2.4854172,4593.5,4593.4,22.9488]
[1756373674424,1.2512,4593.4,4593.1,31.357]
[1756373674721,2.19286,4593.2,4593.1,31.357]
[1756373675320,2.2228472,4593.2,4593.1,51.098]
[1756373675715,2.2228472,4593.2,4593.1,31.357]
[1756373675918,2.2228472,4593.2,4593.1,51.098]
[1756373676525,0.4218472,4593.2,4593.1,51.098]
[1756373677623,0.8282472,4593.2,4593.1,51.098]
[1756373680516,1.2202472,4593.2,4593.1,51.098]
[1756373684114,1.6097472,4593.2,4593.1,51.098]
[1756373686627,1.2202472,4593.2,4593.1,51.098]
[1756373688524,1.2202472,4593.2,4593.1,31.357]
[1756373688829,0.39192,4592.5,4592.4,3.2078]
[1756373689029,1.99406,4592.0,4591.9,3.2078]
[1756373689224,2.38356,4592.0,4591.9,22.9608]
[1756373689424,2.4135472,4592.0,4591.9,22.9608]
[1756373690826,2.4135472,4592.0,4591.9,19.754]
[1756373692726,1.2058472,4592.0,4591.9,19.754]
[1756373694133,1.7435472,4592.0,4591.9,19.754]
[1756373694435,2.4135472,4592.0,4591.9,19.754]
[1756373696137,1.2058472,4592.0,4591.9,19.754]
[1756373697739,1.7435472,4592.0,4591.9,19.754]
[1756373698234,0.0299872,4592.0,4591.9,23.97177]
[1756373698439,0.0299872,4592.0,4591.9,26.9618]
[1756373698641,0.0299872,4592.0,4591.9,27.17957]
[1756373701536,0.4218872,4592.0,4591.9,22.9638]
[1756373701733,0.0299872,4592.0,4591.9,22.9638]
[1756373702637,0.0299872,4592.0,4591.9,26.9638]
[1756373705137,0.0299872,4592.0,4591.9,67.7638]
[1756373706746,0.0299872,4592.0,4591.9,48.0078]
[1756373707039,0.0299872,4592.0,4591.9,67.7838]
[1756373707832,0.0299872,4592.0,4591.9,48.0078]
[1756373708044,0.0299872,4592.0,4591.9,67.7858]
[1756373708447,0.0299872,4592.0,4591.9,48.0078]
[1756373708646,0.0299872,4592.0,4591.9,26.9858]
[1756373708847,0.4350872,4592.0,4591.9,22.9878]
[1756373709046,0.4350872,4592.0,4591.9,3.2078]
[1756373709248,6.0270872,4592.0,4591.9,3.2078]
[1756373709443,6.0270872,4592.0,4591.9,19.78]
[1756373709653,6.0270872,4592.0,4591.4,3.2078]
[1756373709654,0.7939,4591.5,4591.4,3.2078]
[1756373709846,1.9971,4591.5,4591.4,22.9948]
[1756373710250,2.38911,4591.5,4591.4,22.9948]
[1756373710549,2.4190972,4591.5,4591.4,22.9948]
[1756373713343,2.4190972,4591.5,4591.4,3.2078]
[1756373713548,2.4190972,4591.5,4591.4,22.9918]
[1756373714251,2.4190972,4591.5,4591.4,3.2078]
[1756373714550,2.4190972,4591.5,4591.4,22.9918]
[1756373714752,2.0291972,4591.5,4591.4,22.9918]
[1756373715250,1.2352972,4591.5,4591.4,22.9918]
[1756373715446,0.0299872,4591.5,4591.4,22.9918]
[1756373715645,0.4051,4592.8,4592.2,0.39194]
[1756373715840,1.4597,4592.7,4592.6,3.2078]
[1756373716142,1.7398,4592.7,4592.6,13.8268]
[1756373716348,2.389,4592.7,4592.6,13.8268]
[1756373716552,1.9991,4592.7,4592.6,13.8268]
[1756373717149,2.389,4592.7,4592.6,3.2078]
[1756373717357,2.389,4592.7,4592.6,23.0048]
[1756373718642,2.389,4592.7,4592.6,23.0028]
[1756373719351,1.2052,4592.7,4592.6,23.0028]
[1756373719754,0.797,4592.7,4592.6,23.0028]
[1756373720146,1.2052,4592.7,4592.6,23.0028]
[1756373720345,2.389,4592.7,4592.6,23.0028]
[1756373721252,1.9991,4592.7,4592.6,23.0028]
[1756373721454,1.7398,4592.7,4592.6,3.2078]
[1756373721647,1.7398,4592.7,4592.6,23.0008]
[1756373721954,2.389,4592.7,4592.6,23.0008]
[1756373723652,2.389,4592.7,4592.6,3.2078]
[1756373723853,2.389,4592.7,4592.6,22.9988]
[1756373724554,1.2052,4592.7,4592.6,22.9988]
[1756373724754,0.797,4592.7,4592.6,22.9988]
[1756373724956,1.4597,4592.7,4592.6,22.9988]
[1756373725158,2.389,4592.7,4592.6,22.9988]
[1756373725653,2.389,4592.7,4592.6,22.9978]
[1756373728459,1.2052,4592.7,4592.6,22.9978]
[1756373728658,0.797,4592.7,4592.6,22.9978]
[1756373729954,1.2052,4592.7,4592.6,22.9978]
[1756373730162,1.9991,4592.7,4592.6,3.2078]
[1756373730462,1.9991,4592.7,4592.6,22.9978]
[1756373732360,0.97979,4592.6,4592.1,3.2078]